bitfinex/quotes_ETHUSD_20250326
["timestamp","ask_amount","ask_price","bid_price","bid_amount"]
[1742994665341,0.14205191,2062.3,2061.9,4.84974]
[1742994665507,4.99100191,2062.3,2061.9,4.84974]
[1742994665930,0.7896,2062.2,2061.8,9.70009]
[1742994666132,4.84956,2062.1,2061.6,5.66882]
[1742994666443,0.7896,2061.9,2061.6,19.35052]
[1742994666637,0.7896,2061.9,2061.6,14.5]
[1742994667032,0.14205191,2061.8,2061.6,14.5]
[1742994667224,0.14205191,2061.8,2061.6,19.35059]
[1742994668043,0.14205191,2061.8,2061.7,4.85036]
[1742994668248,0.14205191,2061.8,2061.7,9.67994327]
[1742994668436,3.0,2062.1,2061.8,4.85001]
[1742994669816,0.14059924,2062.0,2061.9,14.5]
[1742994670229,0.14059924,2062.0,2061.8,4.85001]
[1742994670714,0.14059924,2062.0,2061.8,19.35001]
[1742994671246,0.14059924,2062.0,2061.8,14.5]
[1742994671426,0.96579924,2062.0,2061.8,14.5]
[1742994671631,0.14059924,2062.0,2061.8,19.35009]
[1742994671830,0.14059924,2062.0,2061.8,20.850881]
[1742994672330,0.14059924,2062.0,2061.8,6.350881]
[1742994674325,0.14059924,2062.0,2061.7,23.33137457]
[1742994674648,0.14059924,2062.0,2061.6,4.85044]
[1742994674846,0.7694,2061.9,2061.6,4.85044]
[1742994675053,0.7694,2061.9,2061.6,9.70093]
[1742994675353,0.14059924,2061.8,2061.6,4.85044]
[1742994675549,0.14059924,2061.8,2061.5,19.42776247]
[1742994675854,0.14059924,2061.8,2061.5,12.30319351]
[1742994676031,4.99077924,2061.8,2061.5,0.1225779]
[1742994676232,0.14059924,2061.8,2061.5,4.9733379]
[1742994677468,0.14059924,2061.8,2061.5,0.1225779]
[1742994677833,0.14059924,2061.8,2061.5,4.9733779]
[1742994678163,0.14059924,2061.8,2061.5,9.8240979]
[1742994678464,0.14059924,2061.8,2061.6,4.85056]
[1742994679563,0.14059924,2061.8,2061.5,8.95449247]
[1742994679762,0.14059924,2061.8,2061.6,4.85042]
[1742994679964,0.14059924,2061.8,2061.7,8.83154457]
[1742994680134,0.776,2062.1,2061.6,5.63942]
[1742994680135,5.62545,2062.1,2061.6,4.85042]
[1742994680330,4.98973924,2062.0,2061.5,4.9733079]
[1742994680862,9.83957924,2062.0,2061.5,4.9733079]
[1742994681168,4.8499,2061.9,2061.5,9.8240179]
[1742994681371,4.8499,2061.9,2061.5,4.9732879]
[1742994681668,0.13994924,2061.8,2061.5,4.9732879]
[1742994681861,0.92354924,2061.8,2061.5,9.8239779]
[1742994682165,0.92354924,2061.8,2061.5,4.9732679]
[1742994682666,0.92354924,2061.8,2061.5,9.8239479]
[1742994683269,0.92354924,2061.8,2061.5,9.8239879]
[1742994683579,0.92354924,2061.8,2061.5,4.9732579]
[1742994683967,0.92354924,2061.8,2061.5,9.8239379]
[1742994684168,0.92354924,2061.8,2061.5,11.28335015]
[1742994684569,0.92354924,2061.8,2061.6,4.85057]
[1742994684734,0.92354924,2061.8,2061.5,11.28339015]
[1742994684935,0.92354924,2061.8,2061.6,4.85055]
[1742994686168,0.92354924,2061.8,2061.6,4.85052]
[1742994687870,0.13994924,2061.8,2061.6,4.85052]
[1742994688172,5.66418,2062.0,2061.6,4.85052]
[1742994688371,0.13994924,2061.9,2061.6,4.85052]
[1742994688671,0.13994924,2061.9,2061.6,4.85047]
[1742994690158,0.13994924,2061.9,2061.7,4.85033]
[1742994690364,0.13994924,2061.9,2061.6,8.83164457]
[1742994690545,0.13994924,2061.9,2061.5,4.9733779]
[1742994690865,3.0,2061.8,2061.5,0.69881569]
[1742994691071,0.8124,2061.7,2061.5,0.1225779]
[1742994691249,0.95250215,2061.7,2061.5,0.1225779]
[1742994692246,0.14010215,2061.7,2061.5,4.9733079]
[1742994692751,0.14010215,2061.6,2061.5,4.9733079]
[1742994692951,3.0,2061.8,2061.5,4.9733079]
[1742994693152,0.14010215,2061.7,2061.5,4.9733079]
[1742994693376,3.0,2061.8,2061.5,4.9733079]
[1742994693591,0.14010215,2061.7,2061.5,4.9733079]
[1742994693785,3.0,2061.8,2061.5,4.9733079]
[1742994693992,0.14010215,2061.7,2061.5,4.9733079]
[1742994694286,3.0,2061.8,2061.5,4.9733079]
[1742994694457,0.14010215,2061.6,2061.5,4.9733079]
[1742994694644,3.0,2061.8,2061.5,4.9733079]
[1742994694851,0.14010215,2061.6,2061.5,4.9733079]
[1742994695340,3.0,2061.8,2061.5,4.9733079]
[1742994695554,0.14010215,2061.7,2061.5,4.9733079]
[1742994695756,3.0,2061.8,2061.5,4.9733079]
[1742994695977,0.14010215,2061.7,2061.5,4.9733079]
[1742994696182,3.0,2061.8,2061.5,4.9733079]
[1742994696482,0.14010215,2061.7,2061.5,4.9733079]
[1742994696977,0.14010215,2061.6,2061.5,4.9733079]
[1742994697136,3.0,2061.9,2061.5,2.34123369]
[1742994697343,0.14010215,2061.8,2061.6,4.85042]
[1742994697652,3.0,2062.0,2061.6,4.85054]
[1742994697982,3.0,2062.0,2061.6,9.70105]
[1742994698141,0.14010215,2061.9,2061.6,4.85051]
[1742994698336,0.14010215,2061.9,2061.6,9.70091]
[1742994698774,0.14010215,2061.9,2061.6,4.85045]
[1742994698951,0.14010215,2061.9,2061.6,9.70087]
[1742994699388,0.14010215,2061.9,2061.6,4.85043]
[1742994699683,0.14010215,2061.9,2061.6,9.70088]
[1742994700055,0.14010215,2061.9,2061.7,4.85035]
[1742994700688,0.14010215,2061.9,2061.8,4.85013]
[1742994700986,0.8319,2062.1,2061.9,4.84984]
[1742994701152,0.13971979,2062.0,2061.9,4.84984]
[1742994701490,0.13971979,2062.0,2061.8,9.70001]
[1742994701863,0.13971979,2062.0,2061.9,4.84989]
[1742994705088,0.13971979,2062.0,2061.9,7.269876]
[1742994705461,3.0,2062.2,2062.1,4.84942]
[1742994707187,0.7752,2062.3,2062.2,4.84919]
[1742994707400,3.0,2062.4,2062.2,4.84919]
[1742994707608,0.7966,2062.5,2062.2,4.84907]
[1742994707775,3.0,2062.6,2062.3,4.84888]
[1742994707976,5.19974846,2062.6,2062.3,4.84888]
[1742994708304,5.19974846,2062.6,2062.2,9.69807]
[1742994708469,5.19974846,2062.6,2062.2,9.69806]
[1742994708665,5.19974846,2062.6,2062.2,4.849]
[1742994708868,5.19974846,2062.6,2062.3,4.84893]
[1742994709071,0.12877104,2062.5,2062.3,4.84893]
[1742994709273,0.12877104,2062.5,2062.4,4.84871]
[1742994709503,0.12877104,2062.5,2062.4,5.63641]
[1742994709796,0.12877104,2062.5,2062.4,4.84871]
[1742994710314,4.84784,2062.8,2062.4,4.84871]
[1742994710507,0.12949735,2062.5,2062.4,4.84871]
[1742994710687,3.0,2062.8,2062.4,9.69733]
[1742994710887,0.12949735,2062.5,2062.4,9.69733]
[1742994711090,3.0,2062.8,2062.5,4.84846]
[1742994711471,3.0,2062.8,2062.5,4.84836]
[1742994711804,3.0,2062.8,2062.5,4.84833]
[1742994712405,3.0,2062.8,2062.5,9.69673]
[1742994712917,7.8478,2062.8,2062.4,4.84868]
[1742994713108,3.98118457,2062.7,2062.4,4.84868]
[1742994713281,0.8176,2062.6,2062.2,10.4859]
[1742994713612,3.98118457,2062.5,2062.1,4.84928]
[1742994713807,3.98118457,2062.5,2062.2,4.84916]
[1742994714489,5.43070203,2062.5,2062.0,4.84957]
[1742994714807,0.7997,2062.3,2062.0,4.84957]
[1742994715034,5.64867,2062.3,2061.9,4.84986]
[1742994715238,5.64867,2062.3,2061.9,9.69963]
[1742994715455,9.62985457,2062.3,2061.9,4.84977]
[1742994716165,9.62985457,2062.3,2061.8,4.85012]
[1742994716453,7.84919,2062.2,2061.8,9.7001]
[1742994717536,3.98118457,2062.1,2061.8,4.84998]
[1742994717717,0.8064,2062.0,2061.8,4.84998]
[1742994720129,0.8064,2062.0,2061.8,19.34998]
[1742994720516,0.8064,2062.0,2061.8,14.5]
[1742994727463,5.6561,2062.0,2061.8,14.5]
[1742994727676,5.6561,2062.0,2061.6,5.61758]
[1742994728026,5.6561,2062.0,2061.7,14.5]
[1742994729061,3.8064,2062.0,2061.7,19.35034]
[1742994729666,8.65606,2062.0,2061.7,14.5]
[1742994730077,3.8064,2062.0,2061.7,14.5]
[1742994730226,0.77875846,2061.9,2061.7,14.5]
[1742994730426,8.65613,2062.0,2061.7,14.5]
[1742994730657,13.50595,2062.0,2061.7,14.5]
[1742994730980,8.65613,2062.0,2061.5,4.9733379]
[1742994731195,4.84999,2061.9,2061.5,4.9733379]
[1742994731456,4.84999,2061.9,2061.6,14.5]
[1742994732371,13.68122457,2061.9,2061.6,14.5]
[1742994732528,10.57993703,2061.9,2061.6,14.5]
[1742994736761,8.83117457,2061.9,2061.6,14.5]
[1742994737571,13.68122457,2061.9,2061.6,14.5]
[1742994738061,8.83117457,2061.9,2061.6,14.5]
[1742994738981,7.23922482,2061.9,2061.6,14.5]
[1742994739279,2.38923482,2061.8,2061.6,14.5]
[1742994739579,12.08928482,2061.9,2061.6,14.5]
[1742994740473,12.08927482,2061.9,2061.6,14.5]
[1742994741487,12.08929482,2061.9,2061.6,14.5]
[1742994741647,7.23922482,2061.9,2061.6,14.5]
[1742994741850,12.08928482,2061.9,2061.6,14.5]
[1742994742474,7.23922482,2061.9,2061.6,14.5]
[1742994743352,7.23922482,2061.9,2061.5,4.9732879]
[1742994743985,7.23922482,2061.9,2061.5,19.4732879]
[1742994744854,2.38923482,2061.8,2061.5,14.6225779]
[1742994745656,7.23941482,2061.8,2061.5,19.4733979]
[1742994745885,0.8174,2061.7,2061.5,0.1225779]
[1742994746292,0.8174,2061.7,2061.5,4.9733779]
[1742994746593,3.20663482,2061.7,2061.5,0.1225779]
[1742994747458,2.38923482,2061.6,2061.5,0.1225779]
[1742994748596,7.23983482,2061.6,2061.5,0.1225779]
[1742994748902,11.5305993,2061.6,2061.5,0.1225779]
[1742994755503,10.23983482,2061.6,2061.5,0.1225779]
[1742994757289,10.78983482,2061.6,2061.5,0.1225779]
[1742994757610,13.99956964,2061.6,2061.5,0.1225779]
[1742994761425,9.2211,2061.6,2061.5,0.1225779]
[1742994761614,13.99956964,2061.6,2061.5,0.1225779]
[1742994761821,13.98034778,2061.6,2061.5,0.1225779]
[1742994762987,16.3695826,2061.6,2061.5,0.1225779]
[1742994766122,13.98034778,2061.6,2061.5,0.1225779]
[1742994768037,13.15984778,2061.6,2061.5,0.1225779]
[1742994768240,16.3773826,2061.6,2061.5,0.1225779]
[1742994769849,13.98814778,2061.6,2061.5,0.1225779]
[1742994771459,14.11305636,2061.6,2061.5,0.1225779]
[1742994771755,0.7944,2062.4,2062.2,4.84908]
[1742994771919,2.38923482,2062.4,2062.1,0.7897]
[1742994772126,2.38923482,2062.3,2062.1,6.202956]
[1742994772735,2.38923482,2062.2,2062.1,0.7897]
[1742994774020,5.38923482,2062.3,2062.1,0.7897]
[1742994774848,6.98075015,2062.3,2062.1,0.7897]
[1742994775219,0.10665855,2062.2,2062.1,0.7897]
[1742994776371,6.98075015,2062.3,2062.1,5.63912]
[1742994776558,0.10538971,2062.2,2062.1,0.7897]
[1742994776734,0.10538971,2062.2,2062.1,3.288611]
[1742994776934,6.98075015,2062.3,2062.1,3.288611]
[1742994777159,0.10538971,2062.2,2062.1,3.288611]
[1742994777347,0.10538971,2062.2,2062.1,0.7897]
[1742994777548,6.98075015,2062.3,2062.1,0.7897]
[1742994777748,0.10538971,2062.2,2062.1,0.7897]
[1742994778137,6.98075015,2062.3,2062.1,0.7897]
[1742994778338,0.10538971,2062.2,2062.1,0.7897]
[1742994778670,6.98075015,2062.3,2062.1,0.7897]
[1742994778873,0.10538971,2062.2,2062.1,5.639]
[1742994779176,3.0,2062.4,2062.1,6.68787]
[1742994779670,0.10546627,2062.3,2062.1,6.68787]
[1742994780068,0.10546627,2062.3,2062.2,4.84919]
[1742994780271,0.10546627,2062.3,2062.2,5.60799]
[1742994780464,13.67649015,2062.8,2062.3,4.84872]
[1742994780638,4.95349627,2062.7,2062.4,4.84869]
[1742994780834,4.84884,2062.4,2062.1,1.04887]
[1742994781063,4.84884,2062.4,2061.9,4.84986]
[1742994781064,3.98075015,2062.2,2062.0,0.8278]
[1742994781267,0.10592557,2062.1,2062.0,0.8278]
[1742994782356,0.10592557,2062.1,2061.8,0.8027]
[1742994782557,0.10592557,2062.1,2061.8,5.65278]
[1742994782747,0.10592557,2062.1,2061.8,0.8027]
[1742994783075,8.83045015,2062.0,2061.8,0.8027]
[1742994783277,0.10822307,2061.9,2061.8,0.8027]
[1742994783779,0.10822307,2061.9,2061.7,4.85021]
[1742994784306,0.10822307,2061.9,2061.6,10.50851]
[1742994784598,9.80818307,2061.9,2061.6,0.8075]
[1742994785496,4.95811307,2061.9,2061.6,0.8075]
[1742994785797,9.80817307,2061.9,2061.6,0.8075]
[1742994786104,4.8506,2061.6,2061.5,0.1225779]
[1742994786262,8.50736829,2061.6,2061.5,0.1225779]
[1742994786598,13.30751844,2061.6,2061.5,0.1225779]
[1742994787264,9.32676829,2061.6,2061.5,0.1225779]
[1742994790965,8.77676829,2061.6,2061.5,0.1225779]
[1742994791163,9.32676829,2061.6,2061.5,0.1225779]
[1742994791376,11.62757113,2061.6,2061.5,0.1225779]
[1742994792587,10.80817113,2061.6,2061.5,0.1225779]
[1742994792787,3.10676829,2061.6,2061.5,0.1225779]
[1742994793096,0.10676829,2061.6,2061.5,5.8049079]
[1742994793396,6.98075015,2062.0,2061.6,4.85041]
[1742994793600,0.09289358,2061.6,2061.5,5.8048579]
[1742994793910,0.09289358,2061.6,2061.5,6.87035169]
[1742994794066,3.0,2061.8,2061.5,6.87035169]
[1742994794272,0.09289358,2061.7,2061.5,6.87035169]
[1742994794472,3.0,2061.8,2061.5,6.87035169]
[1742994794671,0.09289358,2061.7,2061.5,6.87035169]
[1742994794873,3.0,2061.8,2061.5,6.87032169]
[1742994795086,0.09289358,2061.7,2061.6,4.8506]
[1742994795302,3.0,2061.8,2061.6,6.02269217]
[1742994795473,3.0,2061.8,2061.6,1.17209217]
[1742994795673,0.09289358,2061.7,2061.6,1.17209217]
[1742994795873,4.84989,2061.9,2061.6,1.17209217]
[1742994796076,0.09289358,2061.8,2061.6,1.17209217]
[1742994796680,0.09289358,2061.8,2061.7,6.35974301]
[1742994796886,4.84906,2062.3,2061.9,4.84984]
[1742994797100,0.09289358,2062.2,2062.0,5.6581]
[1742994797294,8.82964015,2062.4,2062.0,10.50758]
[1742994797614,3.09289358,2062.3,2062.0,10.50758]
[1742994797910,0.09289358,2062.3,2062.1,4.8494]
[1742994798280,0.09289358,2062.3,2062.1,4.84925]
[1742994798489,0.09289358,2062.3,2062.1,4.84942]
[1742994800814,3.98075015,2062.2,2061.8,4.84995]
[1742994801017,4.84951,2062.1,2061.8,0.7749]
[1742994801214,3.98075015,2062.0,2061.8,0.7749]
[1742994801400,8.83053015,2062.0,2061.6,5.62547]
[1742994801602,13.68038015,2062.0,2061.6,5.62547]
[1742994801912,0.09614842,2061.9,2061.6,5.62547]
[1742994802118,0.09614842,2061.9,2061.6,10.47591]
[1742994802322,0.09614842,2061.9,2061.6,5.62534]
[1742994802622,0.09614842,2061.9,2061.6,6.68521479]
[1742994803886,0.09614842,2061.9,2061.6,1.88327581]
[1742994804087,0.09614842,2061.9,2061.8,4.85013]
[1742994804311,4.84944,2062.1,2061.7,4.85015]
[1742994804519,0.09614842,2062.0,2061.7,4.85015]
[1742994805217,4.94580842,2062.0,2061.7,4.85015]
[1742994805586,0.09614842,2062.0,2061.7,4.85015]
[1742994806487,0.09614842,2062.0,2061.7,9.70042]
[1742994806821,0.09614842,2062.0,2061.7,4.85015]
[1742994807023,4.94593842,2062.0,2061.6,5.62548]
[1742994807315,4.84989,2061.9,2061.6,5.62548]
[1742994807520,0.0984845,2061.8,2061.6,5.62548]
[1742994807831,8.92946465,2061.8,2061.5,0.1225779]
[1742994808811,8.92946465,2061.8,2061.5,4.9733879]
[1742994809028,8.92946465,2061.8,2061.5,0.1225779]
[1742994810751,8.92946465,2061.8,2061.5,4.9733979]
[1742994811642,8.92946465,2061.8,2061.5,0.1225779]
[1742994812349,13.77975465,2061.8,2061.5,0.1225779]
[1742994812848,8.92946465,2061.8,2061.5,0.1225779]
[1742994813153,13.77977465,2061.8,2061.5,0.1225779]
[1742994813520,8.92946465,2061.8,2061.5,0.1225779]
[1742994814738,13.77976465,2061.8,2061.5,0.1225779]
[1742994815852,8.92946465,2061.8,2061.5,0.1225779]
[1742994816768,4.85048,2061.7,2061.5,0.1225779]
[1742994816939,9.70106,2061.7,2061.5,0.1225779]
[1742994817261,7.8506,2061.6,2061.5,0.1225779]
[1742994817626,7.9490845,2061.6,2061.5,0.1225779]
[1742994818231,3.0984845,2061.6,2061.5,0.1225779]
[1742994818632,3.0984845,2061.6,2061.5,0.9523779]
[1742994818844,3.0984845,2061.6,2061.5,5.8032079]
[1742994819251,3.0984845,2061.6,2061.5,0.1225779]
[1742994820642,3.0984845,2061.6,2061.5,4.9734079]
[1742994820971,3.0984845,2061.6,2061.5,0.1225779]
[1742994823275,3.0984845,2061.6,2061.5,14.6225779]
[1742994823571,3.0984845,2061.6,2061.5,0.1225779]
[1742994826579,7.9490845,2061.6,2061.5,0.1225779]
[1742994826886,11.92983465,2061.6,2061.5,0.1225779]
[1742994828799,7.9490845,2061.6,2061.5,0.1225779]
[1742994829400,3.0984845,2061.6,2061.5,0.1225779]
[1742994833094,7.9490845,2061.6,2061.5,0.1225779]
[1742994833595,8.7680845,2061.6,2061.5,0.1225779]
[1742994833800,10.52800497,2061.6,2061.5,0.1225779]
[1742994834312,11.07800497,2061.6,2061.5,0.1225779]
[1742994849132,15.05875512,2061.6,2061.5,0.1225779]
[1742994854059,14.23975512,2061.6,2061.5,0.1225779]
[1742994854544,10.25900497,2061.6,2061.5,0.1225779]
[1742994854714,14.23975512,2061.6,2061.5,0.1225779]
[1742994858924,14.99965512,2061.6,2061.5,0.1225779]
[1742994859522,19.34613183,2061.6,2061.5,0.1225779]
[1742994860260,19.34613183,2061.6,2061.5,7.9e-06]
[1742994861650,47.10498071,2061.6,2061.5,7.9e-06]
[1742994861847,47.10498071,2061.6,2060.4,4.85339]
[1742994861848,4.85265,2060.8,2060.4,4.85339]
[1742994862058,4.85316,2060.6,2060.2,7.83544]
[1742994862260,4.85316,2060.6,2060.3,4.85363]
[1742994862482,4.85316,2060.6,2060.3,19.35363]
[1742994862755,0.09281684,2060.5,2060.3,19.35363]
[1742994863073,0.09281684,2060.5,2060.3,22.22840451]
[1742994864869,0.09281684,2060.5,2060.3,7.72840451]
[1742994865162,13.68645015,2060.7,2060.3,4.85363]
[1742994865386,0.09281684,2060.6,2060.3,9.70719]
[1742994865689,0.09281684,2060.6,2060.3,4.85356]
[1742994865889,0.09281684,2060.6,2060.2,7.83544]
[1742994866193,4.94585684,2060.6,2060.3,4.85361]
[1742994866511,4.94585684,2060.6,2060.4,14.5]
[1742994866670,0.09281684,2060.6,2060.5,0.7911]
[1742994866858,4.85251,2060.8,2060.5,0.7911]
[1742994867059,4.85274,2060.7,2060.5,0.7911]
[1742994867360,4.85275,2060.7,2060.5,0.7911]
[1742994867995,8.40256,2060.8,2060.5,0.7911]
[1742994868574,3.98075015,2060.7,2060.5,0.7911]
[1742994869082,8.83350015,2060.7,2060.5,0.7911]
[1742994869380,3.98075015,2060.7,2060.5,0.7911]
[1742994869567,12.38331015,2060.8,2060.5,0.7911]
[1742994869756,4.85272,2060.7,2060.5,0.7911]
[1742994869953,9.66161015,2061.2,2060.8,4.85248]
[1742994870199,4.85179,2061.1,2060.9,0.7539]
[1742994870787,3.0,2061.0,2060.9,15.2539]
[1742994870959,3.0,2061.0,2060.9,0.7539]
[1742994871158,3.0,2061.0,2060.7,4.85268]
[1742994871397,3.98075015,2060.8,2060.5,21.201011]
[1742994871561,3.98075015,2060.8,2060.5,21.200961]
[1742994871762,8.83324015,2060.8,2060.5,21.200961]
[1742994872693,8.83324015,2060.8,2060.5,0.7981]
[1742994872902,13.68589015,2060.8,2060.5,0.7981]
[1742994873299,4.85284,2060.7,2060.5,0.7981]
[1742994873598,3.98075015,2060.6,2060.3,0.7942]
[1742994873792,8.83387015,2060.6,2060.3,0.7942]
[1742994873989,13.68704015,2060.6,2060.3,0.7942]
[1742994874164,4.85328,2060.5,2060.3,0.7942]
[1742994878107,8.83387015,2060.6,2060.2,7.42618102]
[1742994878108,9.63101015,2060.4,2060.2,2.2]
[1742994878404,3.0,2060.4,2060.2,7.05387]
[1742994878607,3.0,2060.4,2060.2,2.2]
[1742994879199,8.83441015,2060.3,2060.2,2.2]
[1742994879381,3.98075015,2060.3,2060.2,2.2]
[1742994879582,10.60519295,2060.3,2060.2,2.2]
[1742994879784,5.75153295,2060.3,2060.2,2.2]
[1742994880106,3.98075015,2060.3,2060.2,2.2]
[1742994880908,3.0,2060.4,2060.2,2.2]
[1742994881105,11.83419015,2060.4,2060.2,2.2]
[1742994881305,6.98075015,2060.4,2060.2,2.2]
[1742994881517,8.82998695,2060.4,2060.2,2.2]
[1742994881713,13.68341695,2060.4,2060.2,16.7]
[1742994881884,8.82998695,2060.4,2060.2,16.7]
[1742994882089,13.68346695,2060.4,2060.2,16.7]
[1742994882516,8.82998695,2060.4,2060.2,16.7]
[1742994882808,13.68343695,2060.4,2060.2,16.7]
[1742994883390,8.82998695,2060.4,2060.2,16.7]
[1742994883586,8.82998695,2060.4,2060.2,7.05371]
[1742994883587,6.98075015,2060.4,2060.2,7.05371]
[1742994883915,6.98075015,2060.4,2060.3,4.85366]
[1742994884602,5.63832,2060.6,2060.3,4.85366]
[1742994884603,0.55,2060.6,2060.4,4.85329]
[1742994884984,0.55,2060.6,2060.3,9.70722]
[1742994885383,4.36860802,2060.7,2060.4,4.85339]
[1742994885710,3.0,2060.7,2060.4,5.6263]
[1742994886211,3.0,2060.7,2060.4,10.47958]
[1742994886416,3.0,2060.7,2060.4,5.62628]
[1742994888492,7.85274,2060.7,2060.4,5.62628]
[1742994889031,3.98075015,2060.6,2060.4,5.62628]
[1742994889321,5.72806717,2060.6,2060.3,4.85364]
[1742994891181,10.58104717,2060.6,2060.3,4.85364]
[1742994891895,5.72806717,2060.6,2060.4,4.85338]
[1742994892530,3.98075015,2060.6,2060.4,4.85338]
[1742994892822,3.98075015,2060.6,2060.4,4.85331]
[1742994893795,3.98075015,2060.6,2060.3,9.70717]
[1742994894497,3.98075015,2060.6,2060.4,4.85332]
[1742994895209,3.0,2060.7,2060.4,4.85325]
[1742994895416,3.0,2060.7,2060.5,4.85309]
[1742994895588,4.23831802,2060.7,2060.5,4.85309]
[1742994896184,0.8299,2061.0,2060.3,0.7914]
[1742994896391,8.68191,2061.0,2060.7,4.85254]
[1742994896591,13.53409,2061.0,2060.6,5.64429]
[1742994896791,13.53407,2061.0,2060.6,5.64421]
[1742994897030,17.51482015,2061.0,2060.6,5.64421]
[1742994897214,19.32130216,2061.0,2060.6,5.64421]
[1742994897526,14.46914216,2061.0,2060.6,10.49705]
[1742994898503,19.32132216,2061.0,2060.6,5.64421]
[1742994899043,3.0,2060.8,2060.6,5.64421]
[1742994899619,3.0,2060.9,2060.6,5.64421]
[1742994900132,3.0,2060.9,2060.6,10.49706]
[1742994900427,6.98075015,2060.9,2060.6,10.49706]
[1742994900606,6.98075015,2060.9,2060.6,5.64421]
[1742994900796,6.98075015,2060.9,2060.5,4.85316]
[1742994900797,13.27998437,2060.9,2060.5,4.85316]
[1742994900992,18.13238437,2060.9,2060.5,4.85316]
[1742994901443,4.77335015,2060.7,2060.3,4.85358]
[1742994901601,4.77335015,2060.7,2060.4,4.8533]
[1742994901801,14.07251437,2060.9,2060.5,10.47072]
[1742994902030,1.40725144,2060.8,2060.5,10.47072]
[1742994902213,12.62560015,2060.9,2060.5,5.61755]
[1742994902422,17.47802015,2060.9,2060.5,5.61755]
[1742994902623,4.8525,2060.8,2060.5,5.61755]
[1742994902847,12.62560015,2060.9,2060.5,5.61754]
[1742994903031,11.83300015,2060.9,2060.6,4.85288]
[1742994903229,13.50150417,2060.9,2060.6,4.85288]
[1742994903957,8.64925417,2060.9,2060.6,4.85276]
[1742994907032,8.64925417,2060.9,2060.6,9.70562]
[1742994907354,8.64925417,2060.9,2060.6,4.85276]
[1742994908343,13.50154417,2060.9,2060.5,10.47078]
[1742994908546,1.83535742,2060.8,2060.5,5.6176]
[1742994908740,2.63055742,2060.8,2060.5,4.8531]
[1742994909340,7.48303742,2060.8,2060.5,4.8531]
[1742994909965,2.63055742,2060.8,2060.5,4.8531]
[1742994911265,1.83535742,2060.8,2060.5,4.8531]
[1742994911461,1.83535742,2060.8,2060.5,9.70615]
[1742994911637,1.83535742,2060.8,2060.6,4.85291]
[1742994912364,1.83535742,2060.8,2060.5,4.85305]
[1742994916533,6.68787742,2060.8,2060.5,4.85305]
[1742994916939,2.39192215,2060.7,2060.5,4.85305]
[1742994917150,9.07979957,2060.8,2060.5,4.85305]
[1742994917970,2.39192215,2060.7,2060.5,4.85305]
[1742994918472,2.39192215,2060.7,2060.4,4.85341]
[1742994918862,2.39192215,2060.7,2060.5,4.85315]
[1742994920169,2.39192215,2060.6,2060.3,0.7538]
[1742994920374,2.39192215,2060.5,2060.2,7.05387]
[1742994920671,2.39192215,2060.4,2060.2,2.2]
[1742994921263,2.39192215,2060.3,2060.2,2.2]
[1742994921664,7.24558215,2060.3,2060.2,2.2]
[1742994921859,8.53049537,2060.3,2060.2,2.2]
[1742994922264,3.67683537,2060.3,2060.2,2.2]
[1742994922671,8.53049537,2060.3,2060.2,2.2]
[1742994922874,7.99547215,2060.4,2060.2,2.2]
[1742994924082,2.39192215,2060.3,2060.2,2.2]
[1742994924647,7.24558215,2060.3,2060.2,2.2]
[1742994924861,4.85366,2060.3,2060.2,2.2]
[1742994925182,9.59178486,2060.4,2060.2,2.2]
[1742994925478,16.18988535,2060.4,2060.2,2.2]
[1742994925784,11.33628535,2060.4,2060.2,2.2]
[1742994926149,16.18986535,2060.4,2060.2,2.2]
[1742994926349,4.85366,2060.3,2060.2,2.2]
[1742994927177,9.17576,2060.3,2060.2,2.2]
[1742994927377,12.09087754,2060.3,2060.2,2.2]
[1742994927581,7.23721754,2060.3,2060.2,2.2]
[1742994927769,3.0,2060.3,2060.2,2.2]
[1742994929351,7.85366,2060.3,2060.2,2.2]
[1742994930683,3.0,2060.3,2060.2,2.2]
[1742994932101,7.85366,2060.3,2060.2,2.2]
[1742994933218,8.40366,2060.3,2060.2,2.2]
[1742994933517,10.66237549,2060.3,2060.2,2.2]
[1742994934016,11.42007549,2060.3,2060.2,2.2]
[1742994936646,15.40823035,2060.3,2060.2,2.2]
[1742994937633,15.7726939,2060.3,2060.2,2.2]
[1742994946947,14.17859286,2060.3,2060.2,2.2]
[1742994953524,6.12164,2059.5,2059.4,0.1225779]
[1742994953722,12.95554,2059.5,2059.4,0.1225779]
[1742994954275,17.90974764,2059.5,2059.4,7.9e-06]
[1742994954408,18.45974764,2059.5,2059.4,7.9e-06]
[1742994954609,16.06569382,2059.5,2059.4,7.9e-06]
[1742994954834,18.6793008,2059.5,2059.4,7.9e-06]
[1742994956011,15.56914698,2059.5,2059.4,7.9e-06]
[1742994956258,15.38159382,2059.5,2059.4,7.9e-06]
[1742994957053,16.98005353,2059.5,2059.4,7.9e-06]
[1742994958320,11.84805353,2059.5,2059.4,7.9e-06]
[1742994959210,7.85554,2059.5,2059.4,7.9e-06]
[1742994961044,12.39805353,2059.5,2059.4,7.9e-06]
[1742994961244,15.10299548,2059.5,2059.4,7.9e-06]
[1742994962112,11.11048195,2059.5,2059.4,7.9e-06]
[1742994962341,3.0,2059.5,2059.4,0.7915079]
[1742994962756,7.85554,2059.5,2059.4,0.7915079]
[1742994964641,3.0,2059.5,2059.4,0.7915079]
[1742994965450,7.85554,2059.5,2059.4,0.7915079]
[1742994965638,3.0,2059.5,2059.4,0.7915079]
[1742994966153,4.85484,2059.8,2059.4,0.7915079]
[1742994966316,4.85436,2060.0,2059.6,0.7625]
[1742994966511,7.85476,2059.9,2059.6,0.7625]
[1742994966722,4.85492,2059.8,2059.6,0.7625]
[1742994966951,3.0,2059.7,2059.6,0.7625]
[1742994967538,4.85492,2059.8,2059.4,4.8556579]
[1742994967539,4.85541,2059.6,2059.4,0.7733079]
[1742994967749,4.85554,2059.5,2059.4,0.7733079]
[1742994970037,4.85533,2059.6,2059.4,0.7733079]
[1742994970423,7.85537,2059.6,2059.4,0.7733079]
[1742994970624,12.71089,2059.6,2059.4,0.7733079]
[1742994971573,4.85554,2059.5,2059.4,0.7733079]
[1742994975272,7.85537,2059.6,2059.4,0.7733079]